[Event "Guimaraes Open 2019"]
[Site "Guimaraes"]
[Date "2019.08.29"]
[Round "3.15"]
[White "Lopez Gonzalez, Alfonso"]
[Black "Bertomeu Ginestar, Antoni"]
[Result "1-0"]
[ECO "E71"]
[WhiteElo "2219"]
[BlackElo "1883"]
[Annotator "ChessBase"]
[PlyCount "77"]
[EventDate "2019.08.28"]
[EventType "swiss"]
[EventCountry "POR"]
[SourceTitle "playchess.com"]
[Source "ChessBase"]
[SourceQuality "1"]
[TimeControl "5400+30"]

1. d4 {[%emt 0:00:00]} Nf6 {[%emt 0:00:00]} 2. c4 {[%emt 0:00:00]} g6 {[%emt 0:00:00]} 3. Nc3 {[%emt 0:00:00]} Bg7 {[%emt 0:00:00]} 4. e4 {[%emt 0:00:00]} d6 {[%emt 0:00:00]} 5. h3 {[%emt 0:00:01]} O-O {[%emt 0:00:08]} 6. Bd3 {[%emt 0:00:09]} Nc6 {[%emt 0:00:15]} 7. d5 {[%emt 0:00:08]} Nd4 {[%emt 0:00:26]} 8. Nge2 {[%emt 0:01:35]} e5 {[%emt 0:00:19]} 9. O-O {[%emt 0:03:43]} Re8 {[%emt 0:04:45]} 10. f3 {[%emt 0:06:00]} c5 {[%emt 0:09:05]} 11. Bg5 {[%emt 0:04:53]} h6 {[%emt 0:05:32]} 12. Bh4 {[%emt 0:00:27]} Qd7 {[%emt 0:03:04]} 13. Qd2 {[%emt 0:13:25]} Kh7 {[%emt 0:03:38]} 14. Rab1 {[%emt 0:08:45]} Nh5 {[%emt 0:07:29]} 15. g4 {[%emt 0:10:01]} Nf6 {[%emt 0:08:28]} 16. Kg2 {[%emt 0:09:13]} Ng8 {[%emt 0:07:15]} 17. Bg3 {[%emt 0:03:14]} g5 {[%emt 0:01:08]} 18. Bf2 {[%emt 0:07:37]} Nxe2 {[%emt 0:01:13]} 19. Nxe2 {[%emt 0:00:11]} Ne7 {[%emt 0:00:25]} 20. h4 {[%emt 0:03:55]} f6 {[%emt 0:00:17]} 21. h5 {[%emt 0:01:37]} Qc7 {[%emt 0:06:04]} 22. b4 {[%emt 0:01:59]} b6 {[%emt 0:00:49]} 23. Nc3 {[%emt 0:01:56]} a6 {[%emt 0:02:38]} 24. Na4 {[%emt 0:04:38]} Bd7 {[%emt 0:00:54]} 25. Nxb6 {[%emt 0:01:37]} Qxb6 {[%emt 0:02:51]} 26. bxc5 {[%emt 0:00:04]} Qd8 {[%emt 0:01:26]} 27. cxd6 {[%emt 0:00:13]} Nc8 {[%emt 0:00:08]} 28. c5 {[%emt 0:00:33]} Bf8 {[%emt 0:00:41]} 29. Qb4 {[%emt 0:02:19]} Kh8 {[%emt 0:01:10]} 30. Rfc1 {[%emt 0:02:44]} Kg7 {[%emt 0:05:08]} 31. Qa3 {[%emt 0:02:28]} a5 {[%emt 0:00:50]} 32. Rb7 {[%emt 0:00:48]} Kh8 {[%emt 0:00:11]} 33. Rcb1 {[%emt 0:00:55]} Kg8 {[%emt 0:02:49]} 34. Rb8 {[%emt 0:01:12]} Rxb8 {[%emt 0:01:20]} 35. Rxb8 {[%emt 0:00:03]} Kh8 {[%emt 0:00:15]} 36. Be1 {[%emt 0:00:50]} a4 {[%emt 0:00:36]} 37. Bb4 {[%emt 0:01:11]} Kg8 {[%emt 0:00:58]} 38. Qc3 {[%emt 0:01:28]} f5 39. exf5 1-0

[Event "Guimaraes Open 2019"]
[Site "Guimaraes"]
[Date "2019.08.29"]
[Round "3.16"]
[White "Nieves Cabanes, Javier"]
[Black "Santos, Jose Miguel Sereno"]
[Result "1-0"]
[ECO "A06"]
[WhiteElo "2211"]
[BlackElo "1749"]
[Annotator "ChessBase"]
[PlyCount "128"]
[EventDate "2019.08.28"]
[EventType "swiss"]
[EventCountry "POR"]
[SourceTitle "playchess.com"]
[Source "ChessBase"]
[SourceQuality "1"]
[TimeControl "5400+30"]

1. Nf3 {[%emt 0:00:00]} d5 {[%emt 0:00:00]} 2. c4 {[%emt 0:00:00]} c6 {[%emt 0:00:00]} 3. e3 {[%emt 0:00:02]} Nf6 {[%emt 0:00:14]} 4. Nc3 {[%emt 0:00:10]} e6 {[%emt 0:04:55]} 5. b3 {[%emt 0:00:24]} Nbd7 {[%emt 0:00:53]} 6. Qc2 {[%emt 0:01:41]} Bd6 {[%emt 0:01:01]} 7. Bb2 {[%emt 0:00:18]} O-O {[%emt 0:00:41]} 8. Rg1 {[%emt 0:01:27]} e5 {[%emt 0:01:17]} 9. cxd5 {[%emt 0:00:30]} cxd5 {[%emt 0:00:14]} 10. Nb5 {[%emt 0:00:18]} Bb8 {[%emt 0:07:10]} 11. Ba3 {[%emt 0:00:41]} Re8 {[%emt 0:00:08]} 12. Nd6 {[%emt 0:00:11]} Re6 {[%emt 0:01:00]} 13. Nxc8 {[%emt 0:04:53]} Rc6 {[%emt 0:00:21]} 14. Ne7+ {[%emt 0:00:44]} Qxe7 {[%emt 0:00:15]} 15. Qxc6 {[%emt 0:00:12]} Qxa3 {[%emt 0:00:18]} 16. Qc8+ {[%emt 0:00:32]} Qf8 {[%emt 0:00:18]} 17. Rc1 {[%emt 0:01:25]} Bd6 {[%emt 0:00:16]} 18. Qxf8+ {[%emt 0:01:54]} Kxf8 {[%emt 0:00:08]} 19. Bb5 {[%emt 0:02:14]} Ke7 {[%emt 0:02:31]} 20. Bxd7 {[%emt 0:04:33]} Nxd7 {[%emt 0:01:43]} 21. d3 {[%emt 0:01:04]} g6 {[%emt 0:00:25]} 22. Nd2 {[%emt 0:01:32]} Nc5 {[%emt 0:00:38]} 23. Ke2 {[%emt 0:00:19]} f5 {[%emt 0:00:20]} 24. g4 {[%emt 0:01:33]} e4 {[%emt 0:01:20]} 25. dxe4 {[%emt 0:00:56]} fxe4 {[%emt 0:00:24]} 26. f3 {[%emt 0:00:45]} exf3+ {[%emt 0:02:21]} 27. Nxf3 {[%emt 0:00:40]} Ne4 {[%emt 0:00:13]} 28. Rgd1 {[%emt 0:00:57]} Ke6 {[%emt 0:08:13]} 29. Rd3 {[%emt 0:04:24]} Rd8 {[%emt 0:02:40]} 30. Nd4+ {[%emt 0:04:37]} Ke5 {[%emt 0:00:22]} 31. Nb5 {[%emt 0:00:55]} Bc5 {[%emt 0:00:31]} 32. Nd4 {[%emt 0:07:42]} Rd7 {[%emt 0:07:05]} 33. h4 {[%emt 0:01:53]} Ng3+ {[%emt 0:00:29]} 34. Kf3 {[%emt 0:01:40]} Ne4 {[%emt 0:00:09]} 35. Kg2 {[%emt 0:00:21]} Bxd4 {[%emt 0:01:48]} 36. Rxd4 {[%emt 0:01:40]} h5 {[%emt 0:01:24]} 37. gxh5 {[%emt 0:01:51]} gxh5 {[%emt 0:00:04]} 38. Rc8 {[%emt 0:01:48]} Rg7+ {[%emt 0:00:16]} 39. Kf3 {[%emt 0:01:45]} Rg3+ {[%emt 0:00:09]} 40. Ke2 {[%emt 0:00:09]} Rg2+ {[%emt 0:00:11]} 41. Kf1 {[%emt 0:00:22]} Rg4 {[%emt 0:01:03]} 42. Re8+ {[%emt 0:00:31]} Kf6 {[%emt 0:01:17]} 43. Rxd5 {[%emt 0:00:31]} Rxh4 {[%emt 0:00:11]} 44. Rd4 {[%emt 0:04:31]} Ng3+ {[%emt 0:01:14]} 45. Kg2 {[%emt 0:01:19]} Rxd4 {[%emt 0:00:06]} 46. exd4 {[%emt 0:00:04]} Nf5 {[%emt 0:00:03]} 47. Rb8 {[%emt 0:02:41]} Nd6 {[%emt 0:00:12]} 48. Rh8 {[%emt 0:00:10]} Ke6 {[%emt 0:02:06]} 49. Kf3 {[%emt 0:01:52]} Nb5 {[%emt 0:00:19]} 50. Ke3 {[%emt 0:00:36]} Nc3 {[%emt 0:00:38]} 51. a4 {[%emt 0:01:21]} Nd5+ {[%emt 0:00:22]} 52. Ke4 {[%emt 0:01:01]} Nf6+ {[%emt 0:00:36]} 53. Kd3 {[%emt 0:01:15]} Nd5 {[%emt 0:00:37]} 54. Rh7 {[%emt 0:01:06]} Ne7 {[%emt 0:00:41]} 55. Rxh5 {[%emt 0:00:10]} Kd6 {[%emt 0:00:12]} 56. Kc4 {[%emt 0:00:13]} Nc6 {[%emt 0:00:49]} 57. Rh7 {[%emt 0:01:27]} a6 {[%emt 0:00:27]} 58. b4 {[%emt 0:00:22]} Ne7 {[%emt 0:01:49]} 59. a5 {[%emt 0:02:04]} Kd7 {[%emt 0:00:45]} 60. Kc5 {[%emt 0:00:18]} Ke6 {[%emt 0:00:22]} 61. d5+ {[%emt 0:00:45]} Nxd5 {[%emt 0:00:12]} 62. Rh6+ {[%emt 0:00:09]} Nf6 {[%emt 0:00:08]} 63. Kb6 {[%emt 0:00:13]} Ke7 {[%emt 0:00:11]} 64. Rxf6 {[%emt 0:00:11]} Kxf6 {[%emt 0:00:12]} 1-0

[Event "Guimaraes Open 2019"]
[Site "Guimaraes"]
[Date "2019.08.29"]
[Round "3.17"]
[White "Costa, Paulo"]
[Black "Beltran Ortiz, Edda Georgina"]
[Result "1-0"]
[ECO "A04"]
[WhiteElo "2186"]
[BlackElo "1729"]
[Annotator "ChessBase"]
[PlyCount "43"]
[EventDate "2019.08.28"]
[EventType "swiss"]
[EventCountry "POR"]
[SourceTitle "playchess.com"]
[Source "ChessBase"]
[SourceQuality "1"]
[TimeControl "5400+30"]

1. Nf3 {[%emt 0:00:00]} c5 {[%emt 0:00:00]} 2. g3 {[%emt 0:00:09]} Nc6 {[%emt 0:00:49]} 3. Bg2 {[%emt 0:00:23]} e6 {[%emt 0:02:13]} 4. O-O {[%emt 0:01:51]} g6 {[%emt 0:04:17]} 5. c4 {[%emt 0:06:59]} Bg7 {[%emt 0:00:23]} 6. Nc3 {[%emt 0:00:30]} Nge7 {[%emt 0:00:31]} 7. d3 {[%emt 0:06:52]} O-O {[%emt 0:03:26]} 8. Bf4 {[%emt 0:04:01]} d6 {[%emt 0:02:28]} 9. Qc1 {[%emt 0:05:46]} a6 {[%emt 0:10:20]} 10. a3 {[%emt 0:04:57]} Nf5 {[%emt 0:09:08]} 11. Rb1 {[%emt 0:03:21]} Nfd4 {[%emt 0:09:44]} 12. Re1 {[%emt 0:12:21]} Nxf3+ {[%emt 0:06:17]} 13. Bxf3 {[%emt 0:01:57]} Nd4 {[%emt 0:04:59]} 14. Bg2 {[%emt 0:01:05]} Rb8 {[%emt 0:07:00]} 15. b4 {[%emt 0:03:11]} e5 {[%emt 0:03:36]} 16. Bd2 {[%emt 0:02:00]} b6 {[%emt 0:02:59]} 17. e3 {[%emt 0:07:51]} Ne6 {[%emt 0:07:00]} 18. Nd5 {[%emt 0:01:21]} Ng5 {[%emt 0:09:10]} 19. Rf1 {[%emt 0:04:49]} Bg4 {[%emt 0:02:42]} 20. f3 {[%emt 0:01:36]} Be6 {[%emt 0:01:28]} 21. h4 {[%emt 0:03:26]} Bxd5 {[%emt 0:09:42]} 22. cxd5 1-0

[Event "Guimaraes Open 2019"]
[Site "Guimaraes"]
[Date "2019.08.29"]
[Round "3.20"]
[White "Frolov, Ilya"]
[Black "Fernandes, Joao Pedro Murtinho"]
[Result "0-1"]
[ECO "B32"]
[WhiteElo "1163"]
[BlackElo "2044"]
[Annotator "NA"]
[PlyCount "60"]
[EventDate "2019.08.28"]
[EventType "swiss"]
[EventCountry "POR"]
[SourceTitle "playchess.com"]
[Source "ChessBase"]
[SourceQuality "1"]
[TimeControl "5400+30"]

1. e4 {[%emt 0:00:00]} c5 {[%emt 0:00:00]} 2. Nf3 {[%emt 0:00:00]} Nc6 {[%emt 0:00:00]} 3. d4 {[%emt 0:00:33]} cxd4 {[%emt 0:00:00]} 4. Nxd4 {[%emt 0:00:14]} Qb6 {[%emt 0:00:27]} 5. Nxc6 {[%emt 0:01:45]} bxc6 {[%emt 0:00:15]} 6. Nc3 {[%emt 0:01:02]} e5 {[%emt 0:01:04]} 7. Bc4 {[%emt 0:02:04]} Nf6 {[%emt 0:01:31]} 8. Bb3 {[%emt 0:02:28]} Be7 {[%emt 0:02:57]} 9. Be3 {[%emt 0:02:06]} Qc7 {[%emt 0:00:47]} 10. O-O {[%emt 0:01:35]} O-O {[%emt 0:00:34]} 11. Qe2 {[%emt 0:09:09]} d6 {[%emt 0:01:42]} 12. f3 {[%emt 0:06:32]} Be6 {[%emt 0:05:59]} 13. Qf2 {[%emt 0:04:26]} d5 {[%emt 0:03:44]} 14. Bc5 {[%emt 0:04:35]} d4 {[%emt 0:08:31]} 15. Bxe7 {[%emt 0:01:09]} Qxe7 {[%emt 0:00:07]} 16. Bxe6 {[%emt 0:00:09]} fxe6 {[%emt 0:02:36]} 17. Ne2 {[%emt 0:02:12]} Nxe4 {[%emt 0:12:33]} 18. Qe1 {[%emt 0:00:31]} Nf6 {[%emt 0:02:11]} 19. Nc1 {[%emt 0:00:06]} Qc5 {[%emt 0:08:21]} 20. Kh1 {[%emt 0:00:51]} Nd7 {[%emt 0:03:12]} 21. c3 {[%emt 0:00:33]} Qd5 {[%emt 0:01:00]} 22. Qd2 {[%emt 0:04:11]} c5 {[%emt 0:00:42]} 23. Ne2 {[%emt 0:00:56]} Nb6 $17 {[%emt 0:02:43]} (23... a5 $19 24. b3 a4) 24. cxd4 {[%emt 0:02:01]} exd4 {[%emt 0:00:39]} 25. b3 {[%emt 0:02:16]} Rac8 {[%emt 0:01:49]} 26. Rac1 {[%emt 0:00:08]} Kh8 {[%emt 0:05:37]} 27. b4 {[%emt 0:03:31]} Nc4 {[%emt 0:01:04]} 28. Qd3 {[%emt 0:02:33]} Ne3 {[%emt 0:01:03]} 29. Rfe1 {[%emt 0:00:22]} Rxf3 {[%emt 0:02:07]} 30. Nf4 Rxf4 0-1

[Event "Guimaraes Open 2019"]
[Site "Guimaraes"]
[Date "2019.08.29"]
[Round "3.21"]
[White "Pipiras, Filipa Fortuna"]
[Black "Dong, Fabio"]
[Result "1-0"]
[ECO "D43"]
[WhiteElo "1959"]
[BlackElo "1433"]
[Annotator "NA"]
[PlyCount "59"]
[EventDate "2019.08.28"]
[EventType "swiss"]
[EventCountry "POR"]
[SourceTitle "playchess.com"]
[Source "ChessBase"]
[SourceQuality "1"]
[TimeControl "5400+30"]

1. d4 {[%emt 0:01:03]} d5 {[%emt 0:00:00]} 2. c4 {[%emt 0:00:12]} c6 3. Nf3 {[%emt 0:00:22]} Nf6 {[%emt 0:00:11]} 4. Nc3 {[%emt 0:00:42]} e6 {[%emt 0:00:12]} 5. Bg5 {[%emt 0:03:22]} Be7 {[%emt 0:01:11]} 6. e3 {[%emt 0:00:21]} Nbd7 {[%emt 0:00:57]} 7. cxd5 {[%emt 0:00:31]} exd5 {[%emt 0:00:25]} 8. Bd3 {[%emt 0:01:51]} O-O {[%emt 0:00:56]} 9. O-O {[%emt 0:01:34]} Re8 10. Rb1 Nf8 {[%emt 0:03:20]} 11. Ne5 {[%emt 0:03:54]} Ng6 {[%emt 0:01:34]} 12. Qc2 {[%emt 0:01:23]} Be6 {[%emt 0:13:37]} 13. f4 {[%emt 0:06:03]} Bc8 {[%emt 0:24:04]} 14. h3 {[%emt 0:06:36]} c5 {[%emt 0:09:51]} 15. Qf2 {[%emt 0:06:36]} cxd4 {[%emt 0:00:52]} 16. exd4 {[%emt 0:00:08]} Nd7 {[%emt 0:03:05]} 17. Bxg6 {[%emt 0:17:43] h} hxg6 {[%emt 0:00:29]} 18. Bxe7 {[%emt 0:00:21]} Rxe7 {[%emt 0:05:05]} 19. Nxd5 {[%emt 0:01:35]} Re8 {[%emt 0:02:33]} 20. Nc3 $16 {[%emt 0:00:42]} Nb6 {[%emt 0:01:29]} 21. Rbd1 {[%emt 0:01:09]} Nd5 {[%emt 0:01:10]} 22. Nxd5 {[%emt 0:04:10]} Qxd5 {[%emt 0:00:36]} 23. b3 {[%emt 0:00:16]} Be6 {[%emt 0:00:24]} 24. Nc4 {[%emt 0:01:25]} Rad8 {[%emt 0:00:52]} 25. Rfe1 {[%emt 0:00:38]} b5 {[%emt 0:05:33]} 26. Ne3 {[%emt 0:04:30]} Qb7 {[%emt 0:01:52]} 27. Kh2 {[%emt 0:04:37]} a6 {[%emt 0:02:38]} 28. d5 {[%emt 0:01:08]} Bxd5 29. Nxd5 {[%emt 0:03:31]} Rxe1 {[%emt 0:02:13]} 30. Nf6+ {[%emt 0:00:14]} 1-0

[Event "Guimaraes Open 2019"]
[Site "Guimaraes"]
[Date "2019.08.29"]
[Round "3.23"]
[White "Jimenez Fernandez, Rebeca"]
[Black "Tacuchian, Marcelo Oliveira"]
[Result "1-0"]
[ECO "B18"]
[WhiteElo "1928"]
[BlackElo "1381"]
[Annotator "NA RC"]
[PlyCount "125"]
[EventDate "2019.08.28"]
[EventType "swiss"]
[EventCountry "POR"]
[SourceTitle "playchess.com"]
[Source "ChessBase"]
[SourceQuality "1"]
[TimeControl "5400+30"]

1. e4 {[%emt 0:00:00]} c6 {[%emt 0:00:00]} 2. d4 {[%emt 0:00:00]} d5 {[%emt 0:00:00]} 3. Nc3 {[%emt 0:00:00]} dxe4 {[%emt 0:00:29]} 4. Nxe4 {[%emt 0:00:00]} Bf5 {[%emt 0:00:17]} 5. Ng3 {[%emt 0:00:00]} Bg6 {[%emt 0:00:33]} 6. h4 {[%emt 0:00:25]} h6 {[%emt 0:01:40]} 7. h5 {[%emt 0:00:05]} Bh7 {[%emt 0:02:12]} 8. Nf3 {[%emt 0:00:37]} Nf6 {[%emt 0:00:42]} 9. Bd3 {[%emt 0:00:29]} Bxd3 {[%emt 0:00:20]} 10. Qxd3 {[%emt 0:00:05]} e6 {[%emt 0:02:19]} 11. Bf4 {[%emt 0:02:03]} Bd6 {[%emt 0:03:08]} 12. Ne5 {[%emt 0:03:25] B19: Classical Caro-Kann: 4...Bf5 main line} Qa5+ {[%emt 0:02:21]} (12... Bxe5 13. Bxe5 Nbd7 14. Bf4 O-O 15. O-O-O Qa5 16. Kb1 Rfd8 17. Qf3 Qd5 18. Qxd5 cxd5 19. f3 Nb6 20. Bc7 Rdc8 21. Bxb6 axb6 {0-1 (54) Zakhartsov,V (2486)-Dreev,A (2649) Moscow 2018}) 13. c3 {[%emt 0:00:23]} Qc7 $146 {[%emt 0:00:25]} ({Predecessor:} 13... Qd5 14. O-O Bxe5 15. Bxe5 Nbd7 16. f4 O-O 17. c4 Qa5 18. Bd6 Rfe8 19. b4 Qa4 {1-0 (39) Maiorov,O (2449)-Popov,R (2396) Krasnodar 2001}) 14. Ne4 {[%emt 0:05:05]} Nxe4 {[%emt 0:01:46]} 15. Qxe4 {[%emt 0:00:43]} Nd7 {[%emt 0:00:44]} 16. O-O-O {[%emt 0:02:18]} Nxe5 {[%emt 0:05:51]} 17. Bxe5 {[%emt 0:00:14]} Bxe5 {[%emt 0:00:15]} 18. dxe5 {[%emt 0:00:04]} Rd8 {[%emt 0:03:30]} 19. f4 {[%emt 0:00:38]} Qa5 {[%emt 0:03:00]} 20. Rxd8+ {[%emt 0:06:29]} Kxd8 {[%emt 0:03:14]} 21. a3 {[%emt 0:08:46]} Kc7 {[%emt 0:00:17]} 22. Rd1 {[%emt 0:01:48]} Qc5 {[%emt 0:01:52]} 23. Qd3 {[%emt 0:01:59]} Qd5 {[%emt 0:01:29]} 24. Qg3 {[%emt 0:01:43]} Qe4 {[%emt 0:02:29]} 25. Rd4 {[%emt 0:00:52]} Qh7 {[%emt 0:00:18]} 26. Qe3 {[%emt 0:04:21]} Qf5 {[%emt 0:02:15]} 27. Qd2 {[%emt 0:12:05]} Re8 {[%emt 0:10:08]} 28. Rd7+ {[%emt 0:06:18]} Kc8 {[%emt 0:02:54]} 29. a4 {[%emt 0:13:58]} g6 {[%emt 0:10:28]} 30. hxg6 {[%emt 0:02:43]} fxg6 {[%emt 0:00:16]} 31. b3 {[%emt 0:01:24]} g5 {[%emt 0:04:05]} 32. fxg5 {[%emt 0:03:21]} hxg5 {[%emt 0:01:57]} 33. Qd6 {[%emt 0:00:30]} Qf1+ {[%emt 0:01:04]} 34. Kb2 {[%emt 0:00:19]} Qf2+ {[%emt 0:00:13]} 35. Ka3 {[%emt 0:00:11]} Qb6 {[%emt 0:00:23]} 36. Rg7 {[%emt 0:00:34]} Qd8 {[%emt 0:05:14]} (36... Rd8 $142 37. Rg8 (37. Qxe6+ Kb8 $16) 37... a5) 37. Qxd8+ $2 {[%emt 0:00:31]} (37. c4 $18 {is the precise move to win.}) 37... Rxd8 {[%emt 0:01:11]} 38. Rxg5 {[%emt 0:00:06]} a5 {[%emt 0:01:48]} 39. b4 {[%emt 0:03:12]} b6 {[%emt 0:00:26]} 40. Kb3 {[%emt 0:01:24]} Rd5 {[%emt 0:02:03]} 41. Kc2 {[%emt 0:04:17]} Kd7 {[%emt 0:01:08]} 42. c4 {[%emt 0:02:10]} Rd4 {[%emt 0:00:26]} 43. Kc3 {[%emt 0:00:16]} Rd1 {[%emt 0:00:21]} 44. bxa5 {[%emt 0:01:02]} bxa5 {[%emt 0:00:47]} 45. Rg7+ {[%emt 0:01:10]} Ke8 {[%emt 0:00:43]} 46. Ra7 {[%emt 0:00:41]} Rc1+ $2 {[%emt 0:00:20]} (46... Kd8 47. Rxa5 Re1) 47. Kd4 {[%emt 0:00:18]} Rd1+ {[%emt 0:00:40]} 48. Kc5 {[%emt 0:00:53]} Rc1 {[%emt 0:00:19]} 49. Rxa5 {[%emt 0:00:13]} Rc2 {[%emt 0:00:44]} 50. Ra6 {[%emt 0:01:47]} Rxg2 {[%emt 0:00:56]} 51. Kxc6 {[%emt 0:01:13]} Rg4 {[%emt 0:01:35]} 52. Kd6 {[%emt 0:03:20]} (52. Ra8+ $142 Ke7 53. c5 Kf7 54. a5 Ra4 55. a6 Ra3 56. a7 Kg7 57. Kd6) 52... Rxc4 {[%emt 0:00:45]} 53. Kxe6 {[%emt 0:00:10]} Kf8 {[%emt 0:00:31]} 54. Ra7 {[%emt 0:00:57]} Rb4 {[%emt 0:01:03]} 55. a5 {[%emt 0:00:07]} Rb1 {[%emt 0:00:51]} 56. Ra8+ {[%emt 0:00:48]} Kg7 {[%emt 0:00:08]} 57. a6 {[%emt 0:00:10]} Rb6+ {[%emt 0:00:11]} 58. Ke7 {[%emt 0:00:10]} Rc6 {[%emt 0:00:40]} 59. a7 {[%emt 0:00:46]} Ra6 {[%emt 0:00:11]} 60. e6 {[%emt 0:00:23]} Ra5 {[%emt 0:00:20]} 61. Kd7 {[%emt 0:01:26]} Rd5+ {[%emt 0:00:27]} 62. Kc6 {[%emt 0:00:07]} Ra5 {[%emt 0:00:25]} 63. e7 {[%emt 0:00:08]} 1-0

[Event "Guimaraes Open 2019"]
[Site "Guimaraes"]
[Date "2019.08.29"]
[Round "3.24"]
[White "Galego, Luis"]
[Black "Gama, Joao Goncalo Cerejei"]
[Result "1-0"]
[ECO "C47"]
[WhiteElo "2506"]
[BlackElo "1642"]
[Annotator "ChessBase"]
[PlyCount "107"]
[EventDate "2019.08.28"]
[EventType "swiss"]
[EventCountry "POR"]
[SourceTitle "playchess.com"]
[Source "ChessBase"]
[SourceQuality "1"]
[TimeControl "5400+30"]

1. e4 {[%emt 0:00:00]} e5 {[%emt 0:00:00]} 2. Nf3 {[%emt 0:00:00]} Nc6 {[%emt 0:00:00]} 3. Nc3 {[%emt 0:00:00]} Nf6 {[%emt 0:00:19]} 4. g3 {[%emt 0:00:00]} Bc5 {[%emt 0:00:43]} 5. Bg2 {[%emt 0:00:00]} d6 {[%emt 0:00:13]} 6. d3 {[%emt 0:00:32]} h6 {[%emt 0:00:46]} 7. Na4 {[%emt 0:01:27]} Bb6 {[%emt 0:01:22]} 8. O-O {[%emt 0:00:32]} O-O {[%emt 0:00:35]} 9. h3 {[%emt 0:01:08]} Be6 {[%emt 0:01:18]} 10. Nxb6 {[%emt 0:00:55]} axb6 {[%emt 0:00:08]} 11. a3 {[%emt 0:00:59]} Qd7 {[%emt 0:01:02]} 12. Kh2 {[%emt 0:00:09]} d5 {[%emt 0:03:50]} 13. exd5 {[%emt 0:00:18]} Nxd5 {[%emt 0:00:14]} 14. Re1 {[%emt 0:00:09]} f6 {[%emt 0:00:57]} 15. d4 {[%emt 0:00:25]} exd4 {[%emt 0:10:47]} 16. Nxd4 {[%emt 0:00:13]} Nxd4 {[%emt 0:00:15]} 17. Qxd4 {[%emt 0:00:07]} c5 {[%emt 0:00:31]} 18. Qd1 {[%emt 0:01:59]} Rfd8 {[%emt 0:03:35]} 19. c4 {[%emt 0:05:27]} Nc7 {[%emt 0:00:42]} 20. Qxd7 {[%emt 0:02:03]} Rxd7 {[%emt 0:04:24]} 21. Bxb7 {[%emt 0:01:19]} Rad8 {[%emt 0:01:48]} 22. b3 {[%emt 0:01:12]} Bf7 {[%emt 0:06:57]} 23. Be3 {[%emt 0:02:12]} Rd3 {[%emt 0:01:12]} 24. Rab1 {[%emt 0:02:23]} Ne6 {[%emt 0:04:24]} 25. Be4 {[%emt 0:00:09]} R3d7 {[%emt 0:00:18]} 26. Bf5 {[%emt 0:01:19]} Rd6 {[%emt 0:02:13]} 27. Kg2 {[%emt 0:00:50]} Nd4 {[%emt 0:00:32]} 28. Bxd4 {[%emt 0:00:05]} Rxd4 {[%emt 0:00:25]} 29. Re7 {[%emt 0:01:40]} Kf8 {[%emt 0:04:22]} 30. Rb7 {[%emt 0:02:02]} g6 {[%emt 0:02:17]} 31. Bg4 {[%emt 0:00:23]} f5 {[%emt 0:00:31]} 32. Bf3 {[%emt 0:00:08]} R4d6 {[%emt 0:01:13]} 33. Re1 {[%emt 0:02:14]} Re8 {[%emt 0:04:02]} 34. Rxe8+ {[%emt 0:00:23]} Bxe8 {[%emt 0:00:44]} 35. Bd5 {[%emt 0:01:27]} Bc6 {[%emt 0:01:20]} 36. Bxc6 {[%emt 0:00:16]} Rxc6 {[%emt 0:00:04]} 37. Kf3 {[%emt 0:00:05]} Re6 {[%emt 0:00:39]} 38. h4 {[%emt 0:00:26]} g5 {[%emt 0:00:59]} 39. h5 {[%emt 0:00:48]} Kg8 {[%emt 0:00:42]} 40. Rd7 {[%emt 0:00:47]} Kf8 {[%emt 0:01:09]} 41. Rd5 {[%emt 0:00:23]} Rf6 {[%emt 0:01:51]} 42. Re5 {[%emt 0:00:54]} f4 {[%emt 0:00:50]} 43. g4 {[%emt 0:00:48]} Kf7 {[%emt 0:00:30]} 44. Rf5 {[%emt 0:02:39]} Rxf5 {[%emt 0:00:25]} 45. gxf5 {[%emt 0:00:02]} Kf6 {[%emt 0:00:31]} 46. Ke4 {[%emt 0:00:02]} Kf7 {[%emt 0:00:22]} 47. b4 {[%emt 0:00:13]} cxb4 48. axb4 {[%emt 0:00:05]} Kf6 {[%emt 0:00:59]} 49. c5 {[%emt 0:00:07]} bxc5 {[%emt 0:00:04]} 50. bxc5 {[%emt 0:00:06]} Ke7 {[%emt 0:00:11]} 51. c6 {[%emt 0:00:22]} Kd6 {[%emt 0:00:29]} 52. f6 {[%emt 0:00:06]} Kxc6 {[%emt 0:00:28]} 53. f7 {[%emt 0:00:06]} Kc5 {[%emt 0:00:02]} 54. f8=Q+ 1-0

[Event "Guimaraes Open 2019"]
[Site "Guimaraes"]
[Date "2019.08.29"]
[Round "3.26"]
[White "Ruperez Benito, Antonio"]
[Black "Nunes, Eduardo"]
[Result "1-0"]
[ECO "C42"]
[WhiteElo "2331"]
[BlackElo "1566"]
[Annotator "ChessBase"]
[PlyCount "73"]
[EventDate "2019.08.28"]
[EventType "swiss"]
[EventCountry "POR"]
[SourceTitle "playchess.com"]
[Source "ChessBase"]
[SourceQuality "1"]
[TimeControl "5400+30"]

1. e4 {[%emt 0:00:00]} e5 {[%emt 0:00:00]} 2. Nf3 {[%emt 0:00:00]} Nf6 {[%emt 0:00:37]} 3. Nxe5 {[%emt 0:01:57]} d6 {[%emt 0:00:08]} 4. Nf3 {[%emt 0:00:15]} Nxe4 {[%emt 0:00:09]} 5. Nc3 {[%emt 0:00:04]} Nxc3 6. dxc3 {[%emt 0:00:04]} Be7 {[%emt 0:05:30]} 7. Be3 {[%emt 0:00:05]} Nc6 {[%emt 0:01:49]} 8. Qd2 {[%emt 0:00:39]} Be6 {[%emt 0:03:35]} 9. O-O-O {[%emt 0:03:21]} Qd7 {[%emt 0:03:45]} 10. Kb1 {[%emt 0:02:00]} O-O {[%emt 0:02:48]} 11. h4 {[%emt 0:00:54]} f5 {[%emt 0:03:14]} 12. Ng5 {[%emt 0:01:29]} Kh8 {[%emt 0:05:45]} 13. Nxe6 {[%emt 0:04:41]} Qxe6 {[%emt 0:00:22]} 14. g3 {[%emt 0:01:36]} Ne5 {[%emt 0:06:17]} 15. Bf4 {[%emt 0:00:59]} Rad8 {[%emt 0:07:51]} 16. Bg2 {[%emt 0:00:59]} c6 {[%emt 0:03:19]} 17. Rhe1 {[%emt 0:00:58]} Bf6 {[%emt 0:02:20]} 18. Bg5 {[%emt 0:01:18]} Bxg5 {[%emt 0:01:31]} 19. hxg5 {[%emt 0:00:07]} Rfe8 {[%emt 0:02:07]} 20. b3 {[%emt 0:00:41]} Qg6 {[%emt 0:04:09]} 21. f4 {[%emt 0:04:37]} Nf7 {[%emt 0:01:00]} 22. Bf3 {[%emt 0:00:28]} d5 {[%emt 0:01:37]} 23. Rh1 {[%emt 0:01:54]} Qe6 {[%emt 0:02:16]} 24. Qh2 {[%emt 0:04:53]} h6 {[%emt 0:01:25]} 25. Bh5 {[%emt 0:01:10]} g6 {[%emt 0:00:42]} 26. Bf3 {[%emt 0:00:02]} Qe3 {[%emt 0:03:16]} 27. Rd3 {[%emt 0:00:19]} Qc5 {[%emt 0:01:44]} 28. gxh6 {[%emt 0:00:42]} Kh7 {[%emt 0:00:21]} 29. g4 {[%emt 0:01:47]} fxg4 {[%emt 0:04:15]} 30. Bxg4 {[%emt 0:00:59]} Nd6 {[%emt 0:00:54]} 31. f5 {[%emt 0:06:55]} gxf5 {[%emt 0:02:24]} 32. Bh5 {[%emt 0:00:10]} Rg8 {[%emt 0:04:32]} 33. Qe5 {[%emt 0:01:18]} a6 {[%emt 0:08:10]} 34. Qe7+ {[%emt 0:00:48]} Kh8 {[%emt 0:00:11]} 35. h7 {[%emt 0:01:02]} Rg1+ {[%emt 0:01:14]} 36. Rd1 {[%emt 0:00:07]} Rxd1+ {[%emt 0:00:30]} 37. Bxd1 {[%emt 0:00:10]} 1-0